[Event "57th Biel Festival ATO 2024"]
[Site "Biel"]
[Date "2024.07.25"]
[Round "9.19"]
[White "Voet, Dirk"]
[Black "Yu, Tianxiang Carlos"]
[Result "1-0"]
[ECO "B21"]
[WhiteElo "1869"]
[BlackElo "1769"]
[Annotator "NA RC"]
[PlyCount "61"]
[EventDate "2024.07.03"]
[EventType "swiss"]
[EventCountry "SUI"]
[SourceTitle "playchess.com"]
[Source "ChessBase"]
[SourceQuality "1"]
[TimeControl "40/5400+30:1800+30"]

1. g3 {[%emt 0:06:29]} c5 {[%emt 0:00:35]} 2. Bg2 {[%emt 0:00:09]} g6 {[%emt 0:00:12]} 3. e4 {[%emt 0:01:37]} Bg7 {[%emt 0:04:39]} 4. f4 {[%emt 0:00:06]} Nc6 {[%emt 0:01:16]} 5. Nf3 {[%emt 0:00:22]} e6 {[%emt 0:01:23]} 6. c3 {[%emt 0:02:56]} d5 {[%emt 0:04:40]} 7. e5 {[%emt 0:00:02]} Nge7 {[%emt 0:07:09]} 8. d4 {[%emt 0:00:26]} b6 {[%emt 0:04:43]} 9. O-O {[%emt 0:02:06]} Nf5 {[%emt 0:02:38]} 10. Na3 {[%emt 0:06:26]} cxd4 {[%emt 0:11:29]} 11. cxd4 {[%emt 0:02:59]} O-O {[%emt 0:03:51]} 12. g4 {[%emt 0:02:52]} Nh4 {[%emt 0:03:32]} 13. Be3 {[%emt 0:03:52]} Nxg2 {[%emt 0:02:23]} 14. Kxg2 {[%emt 0:00:05]} Qd7 {[%emt 0:03:56]} 15. h4 {[%emt 0:00:54]} f6 {[%emt 0:07:43]} 16. Rh1 {[%emt 0:00:56]} fxe5 {[%emt 0:00:36]} 17. fxe5 {[%emt 0:00:09]} Ba6 {[%emt 0:06:35]} 18. h5 {[%emt 0:03:18]} Ne7 {[%emt 0:01:50]} 19. Qd2 {[%emt 0:00:39]} gxh5 {[%emt 0:14:31]} 20. Rxh5 {[%emt 0:00:24]} Rxf3 {[%emt 0:00:15]} 21. Kxf3 {[%emt 0:00:14]} Rf8+ {[%emt 0:00:20]} 22. Kg3 {[%emt 0:00:39]} Ng6 {[%emt 0:01:55]} 23. Rh2 {[%emt 0:03:10]} Nxe5 {[%emt 0:09:28]} 24. dxe5 {[%emt 0:05:02]} Bxe5+ {[%emt 0:00:03]} 25. Kg2 {[%emt 0:00:55]} d4 {[%emt 0:05:27]} 26. Rh5 {[%emt 0:00:38]} Qc6+ {[%emt 0:00:58]} 27. Kg1 {[%emt 0:01:04]} dxe3 {[%emt 0:00:09]} 28. Qxe3 {[%emt 0:00:38]} Bxb2 {[%emt 0:00:59]} 29. Re1 {[%emt 0:01:24]} Bxa3 {[%emt 0:00:58]} 30. Qxa3 {[%emt 0:00:19]} Bb7 {[%emt 0:00:18]} 31. Rg5+ {[%emt 0:00:44]} 1-0

[Event "57th Biel Festival ATO 2024"]
[Site "Biel"]
[Date "2024.07.25"]
[Round "9.20"]
[White "Jordan, Theodor"]
[Black "Jordan, Christina"]
[Result "1/2-1/2"]
[ECO "D02"]
[WhiteElo "1894"]
[BlackElo "1749"]
[Annotator "NA RC"]
[PlyCount "81"]
[EventDate "2024.07.03"]
[EventType "swiss"]
[EventCountry "SUI"]
[SourceTitle "playchess.com"]
[Source "ChessBase"]
[SourceQuality "1"]
[TimeControl "40/5400+30:1800+30"]

1. h3 {[%emt 0:00:08]} d5 {[%emt 0:01:26]} 2. d4 {[%emt 0:00:04]} Nf6 {[%emt 0:00:26]} 3. Nf3 {[%emt 0:00:09]} c6 {[%emt 0:00:39]} 4. Bf4 {[%emt 0:00:08]} e6 {[%emt 0:01:15]} 5. c3 {[%emt 0:00:09]} Nbd7 {[%emt 0:00:31]} 6. e3 {[%emt 0:00:13]} Be7 {[%emt 0:00:38]} 7. Nbd2 {[%emt 0:00:11]} b6 {[%emt 0:02:20]} 8. Ne5 {[%emt 0:00:30]} Nxe5 {[%emt 0:01:15]} 9. Bxe5 {[%emt 0:00:02]} Bb7 {[%emt 0:00:27]} 10. Nf3 {[%emt 0:00:13]} O-O {[%emt 0:00:24]} 11. Be2 {[%emt 0:00:28]} Ne4 {[%emt 0:01:30]} 12. Nd2 {[%emt 0:00:19]} Nxd2 {[%emt 0:00:49]} 13. Qxd2 {[%emt 0:00:04]} f6 {[%emt 0:00:15]} 14. Bg3 {[%emt 0:00:07]} Bd6 {[%emt 0:00:10]} 15. Bxd6 {[%emt 0:00:06]} Qxd6 {[%emt 0:00:05]} 16. f4 {[%emt 0:01:10]} e5 {[%emt 0:00:26]} 17. O-O {[%emt 0:00:11]} Rae8 {[%emt 0:01:05]} 18. Rae1 {[%emt 0:00:11]} Re7 {[%emt 0:03:03]} 19. fxe5 {[%emt 0:00:22]} fxe5 {[%emt 0:00:06]} 20. Rxf8+ {[%emt 0:00:04]} Kxf8 {[%emt 0:00:05]} 21. Rf1+ {[%emt 0:00:01]} Kg8 {[%emt 0:00:16]} 22. a3 {[%emt 0:00:56]} Bc8 {[%emt 0:02:50]} 23. Bd3 {[%emt 0:01:29]} e4 {[%emt 0:03:20]} 24. Be2 {[%emt 0:00:16]} Qg6 {[%emt 0:00:47]} 25. Kh2 {[%emt 0:00:23]} Qd6+ {[%emt 0:01:27]} 26. Kg1 {[%emt 0:00:08]} Qg3 {[%emt 0:01:05]} 27. Bg4 {[%emt 0:01:04]} Bxg4 {[%emt 0:02:19]} 28. hxg4 {[%emt 0:00:01]} Re6 {[%emt 0:02:42]} 29. Qf2 {[%emt 0:00:32]} Qxf2+ {[%emt 0:00:04]} 30. Rxf2 {[%emt 0:00:17]} Rf6 {[%emt 0:01:18]} 31. Rxf6 {[%emt 0:02:52]} gxf6 {[%emt 0:00:04]} 32. Kf2 {[%emt 0:00:03]} Kg7 {[%emt 0:01:06]} 33. Kg3 {[%emt 0:00:24]} Kg6 {[%emt 0:00:39]} 34. Kf4 {[%emt 0:00:08]} h6 {[%emt 0:03:13]} 35. b4 {[%emt 0:01:57]} b5 {[%emt 0:00:18]} 36. Kg3 {[%emt 0:00:11]} Kg5 {[%emt 0:02:19]} 37. Kh3 {[%emt 0:00:07]} h5 {[%emt 0:10:37]} 38. gxh5 {[%emt 0:00:04]} Kxh5 {[%emt 0:00:06]} 39. g4+ {[%emt 0:00:13]} Kg6 {[%emt 0:02:28]} 40. Kh4 {[%emt 0:00:20]} Kh6 {[%emt 0:00:10]} 41. Kg3 {[%emt 0:30:11]} 1/2-1/2

[Event "57th Biel Festival ATO 2024"]
[Site "Biel"]
[Date "2024.07.25"]
[Round "9.21"]
[White "Rossi, Jonas"]
[Black "Gafner, Lancelot"]
[Result "1-0"]
[ECO "D36"]
[WhiteElo "1796"]
[BlackElo "1864"]
[Annotator "NA RC"]
[PlyCount "37"]
[EventDate "2024.07.03"]
[EventType "swiss"]
[EventCountry "SUI"]
[SourceTitle "playchess.com"]
[Source "ChessBase"]
[SourceQuality "1"]
[TimeControl "40/5400+30:1800+30"]

1. d4 {[%emt 0:00:06]} d5 {[%emt 0:00:09]} 2. c4 {[%emt 0:00:06]} e6 {[%emt 0:00:14]} 3. Nc3 {[%emt 0:00:06]} Nf6 {[%emt 0:00:04]} 4. cxd5 {[%emt 0:00:07]} exd5 {[%emt 0:00:05]} 5. Bg5 {[%emt 0:00:07]} Be7 {[%emt 0:00:13]} 6. e3 {[%emt 0:00:12]} O-O {[%emt 0:00:40]} 7. Bd3 {[%emt 0:00:09]} Nbd7 {[%emt 0:00:18]} 8. Nge2 {[%emt 0:00:24]} c6 {[%emt 0:00:19]} 9. O-O {[%emt 0:00:31]} Re8 {[%emt 0:00:07]} 10. f3 {[%emt 0:00:45]} Nf8 {[%emt 0:00:21]} 11. Qc2 {[%emt 0:00:54]} Ng6 {[%emt 0:00:13]} 12. Rad1 {[%emt 0:03:08]} h6 {[%emt 0:00:50]} 13. Bxf6 {[%emt 0:00:27]} Bxf6 {[%emt 0:00:07]} 14. Bxg6 {[%emt 0:00:15]} fxg6 {[%emt 0:00:11]} 15. e4 {[%emt 0:00:09]} dxe4 {[%emt 0:02:40]} 16. fxe4 {[%emt 0:00:29]} Bg5 {[%emt 0:04:49]} 17. e5 {[%emt 0:11:05]} Qb6 {[%emt 0:06:35]} 18. Qxg6 {[%emt 0:03:34]} Bg4 {[%emt 0:07:46]} 19. Rf7 {[%emt 0:03:56]} 1-0

[Event "57th Biel Festival ATO 2024"]
[Site "Biel"]
[Date "2024.07.25"]
[Round "9.22"]
[White "Jaggy, Enzo"]
[Black "Sushrutha, Reddy"]
[Result "0-1"]
[ECO "D05"]
[WhiteElo "1835"]
[BlackElo "1649"]
[Annotator "NA RC"]
[PlyCount "84"]
[EventDate "2024.07.03"]
[EventType "swiss"]
[EventCountry "SUI"]
[SourceTitle "playchess.com"]
[Source "ChessBase"]
[SourceQuality "1"]
[TimeControl "40/5400+30:1800+30"]

1. d4 {[%emt 0:00:32]} Nf6 {[%emt 0:02:16]} 2. Nf3 {[%emt 0:00:07]} d5 {[%emt 0:00:10]} 3. e3 {[%emt 0:00:10]} c5 {[%emt 0:00:02]} 4. c3 {[%emt 0:00:07]} Nc6 {[%emt 0:00:08]} 5. dxc5 {[%emt 0:00:44]} Bg4 {[%emt 0:00:17]} 6. Be2 {[%emt 0:00:20]} e5 {[%emt 0:00:09]} 7. b4 {[%emt 0:00:08]} Qc7 {[%emt 0:01:18]} 8. Bb2 {[%emt 0:00:39]} a6 {[%emt 0:01:46]} 9. O-O {[%emt 0:01:07]} Be7 {[%emt 0:00:13]} 10. a3 {[%emt 0:00:20]} O-O {[%emt 0:00:15]} 11. Nbd2 {[%emt 0:01:18]} Rfd8 {[%emt 0:00:52]} 12. Qc2 {[%emt 0:01:52]} e4 {[%emt 0:00:10]} 13. Nd4 {[%emt 0:00:10]} Nxd4 {[%emt 0:00:06]} 14. cxd4 {[%emt 0:00:34]} Bxe2 {[%emt 0:00:03]} 15. Nxe4 {[%emt 0:00:28]} Bxf1 {[%emt 0:00:25]} 16. Nxf6+ {[%emt 0:00:16]} Bxf6 {[%emt 0:00:11]} 17. Rxf1 {[%emt 0:00:02]} b6 {[%emt 0:00:28]} 18. Rc1 {[%emt 0:01:55]} Rac8 {[%emt 0:00:09]} 19. Qa4 {[%emt 0:00:20]} bxc5 {[%emt 0:02:15]} 20. Qxa6 {[%emt 0:00:38]} c4 {[%emt 0:00:30]} 21. Rc3 {[%emt 0:02:14]} Rd6 {[%emt 0:00:29]} 22. Qa4 {[%emt 0:00:06]} Be7 {[%emt 0:00:38]} 23. Qd1 {[%emt 0:00:58]} Rh6 {[%emt 0:00:35]} 24. g3 {[%emt 0:00:31]} Qd7 {[%emt 0:00:28]} 25. Qf3 {[%emt 0:00:34]} Rf6 {[%emt 0:01:32]} 26. Qg2 {[%emt 0:01:08]} Qf5 {[%emt 0:00:12]} 27. Qf1 {[%emt 0:00:13]} h5 {[%emt 0:00:32]} 28. h4 {[%emt 0:00:39]} g5 {[%emt 0:00:20]} 29. e4 {[%emt 0:01:05]} dxe4 {[%emt 0:00:26]} 30. hxg5 {[%emt 0:00:21]} Qxg5 {[%emt 0:00:48]} 31. Bc1 {[%emt 0:00:15]} Qg4 {[%emt 0:00:29]} 32. b5 {[%emt 0:01:11]} h4 {[%emt 0:01:26]} 33. a4 {[%emt 0:00:10]} Bb4 {[%emt 0:00:46]} 34. Re3 {[%emt 0:00:26]} hxg3 {[%emt 0:00:47]} 35. Rxg3 {[%emt 0:00:26]} Qxg3+ {[%emt 0:00:18]} 36. fxg3 {[%emt 0:00:10]} Rxf1+ {[%emt 0:00:14]} 37. Kxf1 {[%emt 0:00:04]} Ba5 {[%emt 0:00:59]} 38. Ke2 {[%emt 0:01:13]} f5 {[%emt 0:00:13]} 39. Ke3 {[%emt 0:01:06]} Kf7 {[%emt 0:00:07]} 40. d5 {[%emt 0:01:01]} Kf6 {[%emt 0:00:44]} 41. Bb2+ {[%emt 0:30:17]} c3 {[%emt 0:30:03]} 42. Bc1 {[%emt 0:00:17]} Ke5 {[%emt 0:00:13]} 0-1

[Event "57th Biel Festival ATO 2024"]
[Site "Biel"]
[Date "2024.07.25"]
[Round "9.23"]
[White "Mohr, Jan"]
[Black "Kern, Beat"]
[Result "1-0"]
[ECO "D10"]
[WhiteElo "1824"]
[BlackElo "1717"]
[Annotator "NA RC"]
[PlyCount "45"]
[EventDate "2024.07.03"]
[EventType "swiss"]
[EventCountry "SUI"]
[SourceTitle "playchess.com"]
[Source "ChessBase"]
[SourceQuality "1"]
[TimeControl "40/5400+30:1800+30"]

1. d4 {[%emt 0:00:05]} d5 {[%emt 0:00:20]} 2. c4 {[%emt 0:00:03]} c6 {[%emt 0:00:17]} 3. cxd5 {[%emt 0:00:04]} cxd5 {[%emt 0:00:24]} 4. Bf4 {[%emt 0:00:05]} e6 {[%emt 0:00:39]} 5. e3 {[%emt 0:00:19]} Bd6 {[%emt 0:00:24]} 6. Nc3 {[%emt 0:01:12]} Bxf4 {[%emt 0:00:25]} 7. exf4 {[%emt 0:00:05]} Bd7 {[%emt 0:00:41]} 8. Nf3 {[%emt 0:00:35]} a6 {[%emt 0:01:43]} 9. Bd3 {[%emt 0:00:43]} Nf6 {[%emt 0:00:48]} 10. O-O {[%emt 0:01:44]} Nc6 {[%emt 0:01:11]} 11. Re1 {[%emt 0:00:37]} O-O {[%emt 0:00:28]} 12. Ne5 {[%emt 0:01:58]} Ne7 {[%emt 0:05:59]} 13. Re3 {[%emt 0:01:28]} Nf5 {[%emt 0:04:03]} 14. Rh3 {[%emt 0:01:01]} g6 {[%emt 0:06:32]} 15. g4 {[%emt 0:05:59]} Ng7 {[%emt 0:01:46]} 16. Qf3 {[%emt 0:05:07]} Qe8 {[%emt 0:05:39]} 17. Kh1 {[%emt 0:00:43]} Bc6 {[%emt 0:05:18]} 18. Rg1 {[%emt 0:01:26]} Ne4 {[%emt 0:01:18]} 19. Nxe4 {[%emt 0:00:38]} dxe4 {[%emt 0:01:11]} 20. Bxe4 {[%emt 0:00:36]} Bxe4 {[%emt 0:01:44]} 21. Qxe4 {[%emt 0:00:02]} Qb5 {[%emt 0:01:09]} 22. Rb3 {[%emt 0:01:22]} Qd5 {[%emt 0:05:51]} 23. Qxd5 {[%emt 0:00:21]} 1-0

[Event "57th Biel Festival ATO 2024"]
[Site "Biel"]
[Date "2024.07.25"]
[Round "9.24"]
[White "Galopin, Clement"]
[Black "Kim, Sarang"]
[Result "0-1"]
[ECO "C18"]
[WhiteElo "1816"]
[BlackElo "1704"]
[Annotator "NA RC"]
[PlyCount "134"]
[EventDate "2024.07.03"]
[EventType "swiss"]
[EventCountry "SUI"]
[SourceTitle "playchess.com"]
[Source "ChessBase"]
[SourceQuality "1"]
[TimeControl "40/5400+30:1800+30"]

1. e4 {[%emt 0:01:31]} e6 {[%emt 0:00:12]} 2. d4 {[%emt 0:00:50]} d5 {[%emt 0:00:04]} 3. Nc3 {[%emt 0:00:04]} Bb4 {[%emt 0:00:05]} 4. e5 {[%emt 0:00:18]} c5 {[%emt 0:00:04]} 5. a3 {[%emt 0:00:06]} Bxc3+ {[%emt 0:00:08]} 6. bxc3 {[%emt 0:00:02]} Ne7 {[%emt 0:00:13]} 7. Qg4 {[%emt 0:00:23]} Qc7 {[%emt 0:00:07]} 8. Bb5+ {[%emt 0:24:28]} Bd7 {[%emt 0:01:20]} 9. Bxd7+ {[%emt 0:00:07]} Nxd7 {[%emt 0:00:07]} 10. Ne2 {[%emt 0:00:36]} cxd4 {[%emt 0:01:19]} 11. cxd4 {[%emt 0:00:23]} Qxc2 {[%emt 0:00:54]} 12. O-O {[%emt 0:00:26]} Qg6 {[%emt 0:01:23]} 13. Qf3 {[%emt 0:08:33]} O-O {[%emt 0:02:54]} 14. a4 {[%emt 0:03:14]} Nc6 {[%emt 0:01:55]} 15. Ba3 {[%emt 0:07:26]} Rfe8 {[%emt 0:00:08]} 16. Rfc1 {[%emt 0:00:15]} f6 {[%emt 0:00:24]} 17. Rab1 {[%emt 0:02:36]} Nb6 {[%emt 0:02:50]} 18. Bd6 {[%emt 0:13:26]} Rac8 {[%emt 0:06:02]} 19. Kf1 {[%emt 0:07:09]} Nc4 {[%emt 0:00:39]} 20. Qc3 {[%emt 0:02:59]} b6 {[%emt 0:01:34]} 21. Kg1 {[%emt 0:01:20]} Red8 {[%emt 0:01:16]} 22. Qh3 {[%emt 0:02:21]} fxe5 {[%emt 0:01:35]} 23. dxe5 {[%emt 0:00:33]} N6xe5 {[%emt 0:01:12]} 24. Bxe5 {[%emt 0:00:14]} Nxe5 {[%emt 0:00:09]} 25. Nf4 {[%emt 0:00:30]} Qf5 {[%emt 0:08:06]} 26. Nxe6 {[%emt 0:02:26]} Qxh3 {[%emt 0:00:33]} 27. gxh3 {[%emt 0:00:02]} Rxc1+ {[%emt 0:00:36]} 28. Rxc1 {[%emt 0:00:03]} Rd6 {[%emt 0:01:51]} 29. Nd4 {[%emt 0:01:32]} Nc4 {[%emt 0:00:53]} 30. Nf5 {[%emt 0:01:01]} Rg6+ {[%emt 0:01:46]} 31. Kf1 {[%emt 0:00:44]} Re6 {[%emt 0:01:41]} 32. Rd1 {[%emt 0:02:01]} Re5 {[%emt 0:03:14]} 33. Rxd5 {[%emt 0:00:35]} Rxd5 {[%emt 0:00:05]} 34. Ne7+ {[%emt 0:00:11]} Kf7 {[%emt 0:00:05]} 35. Nxd5 {[%emt 0:00:05]} Nb2 {[%emt 0:00:37]} 36. Nc3 {[%emt 0:00:17]} Ke6 {[%emt 0:00:18]} 37. Ke2 {[%emt 0:00:28]} Kd6 {[%emt 0:02:06]} 38. Kd2 {[%emt 0:07:33]} Kc5 {[%emt 0:00:13]} 39. Kc2 {[%emt 0:00:30]} Nc4 {[%emt 0:00:08]} 40. Kb3 {[%emt 0:01:50]} Nd2+ {[%emt 0:00:21]} 41. Kc2 {[%emt 0:32:24]} Nf3 {[%emt 0:30:13]} 42. Kb3 {[%emt 0:01:16]} Nxh2 {[%emt 0:00:29]} 43. Ne4+ {[%emt 0:00:06]} Kd5 {[%emt 0:01:24]} 44. Nc3+ {[%emt 0:01:08]} Kc6 {[%emt 0:00:09]} 45. Nb5 {[%emt 0:00:33]} a6 {[%emt 0:00:25]} 46. Nd4+ {[%emt 0:00:14]} Kd5 {[%emt 0:01:09]} 47. Kc3 {[%emt 0:00:46]} Nf1 {[%emt 0:01:44]} 48. Kd3 {[%emt 0:01:22]} Nd2 {[%emt 0:00:54]} 49. Nf5 {[%emt 0:00:27]} Nc4 {[%emt 0:01:13]} 50. Kc3 {[%emt 0:05:13]} Nd6 {[%emt 0:01:05]} 51. Ne3+ {[%emt 0:01:51]} Ke4 {[%emt 0:00:11]} 52. Nc2 {[%emt 0:00:00]} Kf3 {[%emt 0:00:00]} 53. Nb4 {[%emt 0:00:00]} Ne4+ {[%emt 0:00:00]} 54. Kd4 {[%emt 0:00:00]} Nc5 {[%emt 0:00:00]} 55. a5 {[%emt 0:00:00]} Nb3+ {[%emt 0:00:00]} 56. Kd5 {[%emt 0:00:00]} bxa5 {[%emt 0:00:00]} 57. Nxa6 {[%emt 0:00:00]} Kxf2 {[%emt 0:00:00]} 58. Kc4 {[%emt 0:00:00]} a4 {[%emt 0:00:00]} 59. Kb4 {[%emt 0:00:00]} Kg3 {[%emt 0:00:00]} 60. Kxa4 {[%emt 0:00:00]} Nd4 {[%emt 0:00:00]} 61. Nc5 {[%emt 0:00:00]} Kxh3 {[%emt 0:00:00]} 62. Kb4 {[%emt 0:00:00]} g5 {[%emt 0:00:00]} 63. Kc4 {[%emt 0:00:00]} Nf5 {[%emt 0:00:00]} 64. Ne4 {[%emt 0:00:00]} h6 {[%emt 0:00:00]} 65. Kd3 {[%emt 0:00:00]} Kg2 {[%emt 0:00:00]} 66. Nf6 {[%emt 0:00:00]} Kf3 {[%emt 0:00:00]} 67. Kd2 {[%emt 0:00:00]} Ng3 {[%emt 0:00:00]} 0-1

[Event "57th Biel Festival ATO 2024"]
[Site "Biel"]
[Date "2024.07.25"]
[Round "9.27"]
[White "Kessler, Meinrad"]
[Black "Lesniak, Julien"]
[Result "1/2-1/2"]
[ECO "C10"]
[WhiteElo "1874"]
[BlackElo "1728"]
[Annotator "NA RC"]
[PlyCount "22"]
[EventDate "2024.07.03"]
[EventType "swiss"]
[EventCountry "SUI"]
[SourceTitle "playchess.com"]
[Source "ChessBase"]
[SourceQuality "1"]
[TimeControl "40/5400+30:1800+30"]

1. e4 {[%emt 0:00:04]} e6 {[%emt 0:00:24]} 2. d4 {[%emt 0:00:12]} d5 {[%emt 0:00:33]} 3. Nc3 {[%emt 0:00:12]} dxe4 {[%emt 0:02:31]} 4. Nxe4 {[%emt 0:01:37]} Nd7 {[%emt 0:02:06]} 5. Bd3 {[%emt 0:01:51]} Be7 {[%emt 0:02:16]} 6. Nf3 {[%emt 0:05:16]} Ngf6 {[%emt 0:03:01]} 7. c3 {[%emt 0:00:36]} Nxe4 {[%emt 0:02:47]} 8. Bxe4 {[%emt 0:00:30]} Nf6 {[%emt 0:01:49]} 9. Bc2 {[%emt 0:00:34]} O-O {[%emt 0:02:08]} 10. O-O {[%emt 0:00:20]} b6 {[%emt 0:04:22]} 11. Bf4 {[%emt 0:04:54]} Bb7 {[%emt 0:05:54]} 1/2-1/2

[Event "57th Biel Festival ATO 2024"]
[Site "Biel"]
[Date "2024.07.25"]
[Round "9.28"]
[White "Luedi, Paul"]
[Black "Hofer, Friedrich"]
[Result "1/2-1/2"]
[ECO "D58"]
[WhiteElo "1715"]
[BlackElo "1798"]
[Annotator "NA RC"]
[PlyCount "103"]
[EventDate "2024.07.03"]
[EventType "swiss"]
[EventCountry "SUI"]
[SourceTitle "playchess.com"]
[Source "ChessBase"]
[SourceQuality "1"]
[TimeControl "40/5400+30:1800+30"]

1. d4 {[%emt 0:00:06]} d5 {[%emt 0:00:12]} 2. c4 {[%emt 0:00:17]} e6 {[%emt 0:00:12]} 3. Nc3 {[%emt 0:00:21]} Nf6 {[%emt 0:00:22]} 4. Bg5 {[%emt 0:01:16]} Be7 {[%emt 0:00:25]} 5. e3 {[%emt 0:00:39]} O-O {[%emt 0:00:34]} 6. Bd3 {[%emt 0:00:36]} Nbd7 {[%emt 0:00:38]} 7. Nf3 {[%emt 0:01:22]} h6 {[%emt 0:00:40]} 8. Bh4 {[%emt 0:00:27]} b6 {[%emt 0:02:44]} 9. cxd5 {[%emt 0:04:18]} exd5 {[%emt 0:00:14]} 10. O-O {[%emt 0:04:08]} Bb7 {[%emt 0:00:41]} 11. h3 {[%emt 0:04:31]} Ne4 {[%emt 0:02:11]} 12. Bxe7 {[%emt 0:00:32]} Qxe7 {[%emt 0:00:09]} 13. Rc1 {[%emt 0:01:51]} c5 {[%emt 0:05:57]} 14. dxc5 {[%emt 0:03:29]} bxc5 {[%emt 0:00:55]} 15. Be2 {[%emt 0:11:58]} Ndf6 {[%emt 0:02:33]} 16. Na4 {[%emt 0:05:17]} Rac8 {[%emt 0:05:57]} 17. b3 {[%emt 0:01:42]} Rfd8 {[%emt 0:02:21]} 18. Re1 {[%emt 0:12:09]} Qd6 {[%emt 0:17:15]} 19. Nd2 {[%emt 0:07:07]} Nxd2 {[%emt 0:10:49]} 20. Qxd2 {[%emt 0:00:36]} Ne4 {[%emt 0:01:26]} 21. Qd1 {[%emt 0:00:38]} Qe7 {[%emt 0:08:35]} 22. Bf3 {[%emt 0:02:49]} d4 {[%emt 0:02:25]} 23. exd4 {[%emt 0:03:35]} Rxd4 {[%emt 0:01:12]} 24. Qe2 {[%emt 0:00:20]} Qg5 {[%emt 0:01:37]} 25. Qe3 {[%emt 0:06:38]} Qh4 {[%emt 0:05:54]} 26. Nc3 {[%emt 0:04:58]} f5 {[%emt 0:04:44]} 27. Ne2 {[%emt 0:03:20]} Rd6 {[%emt 0:02:36]} 28. Bxe4 {[%emt 0:02:22]} Bxe4 {[%emt 0:00:56]} 29. Rxc5 {[%emt 0:00:56]} Rxc5 {[%emt 0:01:28]} 30. Qxc5 {[%emt 0:00:11]} Rc6 {[%emt 0:00:25]} 31. Qe3 {[%emt 0:04:01]} Rc2 {[%emt 0:02:36]} 32. a4 {[%emt 0:02:21]} Qf6 {[%emt 0:01:37]} 33. Rc1 {[%emt 0:01:19]} Qc6 {[%emt 0:03:01]} 34. Rxc2 {[%emt 0:01:06]} Qxc2 {[%emt 0:00:50]} 35. Ng3 {[%emt 0:01:44]} Qd1+ {[%emt 0:00:56]} 36. Kh2 {[%emt 0:00:21]} Qd3 {[%emt 0:02:55]} 37. Qxd3 {[%emt 0:00:55]} Bxd3 {[%emt 0:00:07]} 38. a5 {[%emt 0:00:08]} Kf7 {[%emt 0:00:37]} 39. f4 {[%emt 0:00:29]} g6 {[%emt 0:00:22]} 40. Nh1 {[%emt 0:00:09]} Ke6 {[%emt 0:00:52]} 41. Nf2 {[%emt 0:30:08]} Bc2 {[%emt 0:30:17]} 42. b4 {[%emt 0:00:39]} Kd5 {[%emt 0:00:31]} 43. g4 {[%emt 0:00:25]} Kc4 {[%emt 0:00:15]} 44. h4 {[%emt 0:00:22]} Kxb4 {[%emt 0:00:32]} 45. h5 {[%emt 0:01:33]} fxg4 {[%emt 0:01:06]} 46. Nxg4 {[%emt 0:02:02]} gxh5 {[%emt 0:00:11]} 47. Nxh6 {[%emt 0:00:21]} Kxa5 {[%emt 0:00:12]} 48. f5 {[%emt 0:00:08]} Bxf5 {[%emt 0:01:18]} 49. Nxf5 {[%emt 0:00:09]} Kb4 {[%emt 0:00:38]} 50. Nd4 {[%emt 0:00:31]} a6 {[%emt 0:00:30]} 51. Nc6+ {[%emt 0:00:49]} Kb5 {[%emt 0:00:19]} 52. Nd4+ {[%emt 0:00:30]} 1/2-1/2

[Event "57th Biel Festival ATO 2024"]
[Site "Biel"]
[Date "2024.07.25"]
[Round "9.29"]
[White "Juchler, Celine"]
[Black "Richard, Jean-Paul"]
[Result "1/2-1/2"]
[ECO "B25"]
[WhiteElo "1664"]
[BlackElo "1796"]
[Annotator "NA RC"]
[PlyCount "44"]
[EventDate "2024.07.03"]
[EventType "swiss"]
[EventCountry "SUI"]
[SourceTitle "playchess.com"]
[Source "ChessBase"]
[SourceQuality "1"]
[TimeControl "40/5400+30:1800+30"]

1. e4 {[%emt 0:00:03]} c5 {[%emt 0:00:04]} 2. Nc3 {[%emt 0:00:05]} Nc6 {[%emt 0:00:06]} 3. g3 {[%emt 0:00:27]} g6 {[%emt 0:00:05]} 4. Bg2 {[%emt 0:00:28]} Bg7 {[%emt 0:00:06]} 5. d3 {[%emt 0:00:32]} d6 {[%emt 0:00:26]} 6. f4 {[%emt 0:00:33]} e6 {[%emt 0:00:20]} 7. Nf3 {[%emt 0:00:33]} Nge7 {[%emt 0:00:30]} 8. O-O {[%emt 0:01:30]} O-O {[%emt 0:00:35]} 9. Be3 {[%emt 0:01:39]} b6 {[%emt 0:02:59]} 10. e5 {[%emt 0:03:49]} d5 {[%emt 0:01:55]} 11. Bd2 {[%emt 0:01:55]} Ba6 {[%emt 0:11:06]} 12. a4 {[%emt 0:04:02]} Qd7 {[%emt 0:14:02]} 13. Na2 {[%emt 0:09:21]} Bb7 {[%emt 0:10:14]} 14. Nc3 {[%emt 0:05:52]} a6 {[%emt 0:01:45]} 15. Ne2 {[%emt 0:04:10]} d4 {[%emt 0:03:29]} 16. Ng5 {[%emt 0:03:24]} f6 {[%emt 0:08:30]} 17. exf6 {[%emt 0:03:20]} Bxf6 {[%emt 0:00:06]} 18. Ne4 {[%emt 0:00:16]} Bg7 {[%emt 0:00:12]} 19. Bh3 {[%emt 0:00:43]} Qd5 {[%emt 0:01:49]} 20. Bg2 {[%emt 0:01:05]} Qd7 {[%emt 0:02:53]} 21. Bh3 {[%emt 0:03:38]} Qd5 {[%emt 0:03:53]} 22. Bg2 {[%emt 0:00:21]} Qd7 {[%emt 0:00:36]} 1/2-1/2

[Event "57th Biel Festival ATO 2024"]
[Site "Biel"]
[Date "2024.07.25"]
[Round "9.30"]
[White "Lachausse, Bruno"]
[Black "Noel, Lucien"]
[Result "1-0"]
[ECO "C24"]
[WhiteElo "1787"]
[BlackElo "1714"]
[Annotator "NA RC"]
[PlyCount "35"]
[EventDate "2024.07.03"]
[EventType "swiss"]
[EventCountry "SUI"]
[SourceTitle "playchess.com"]
[Source "ChessBase"]
[SourceQuality "1"]
[TimeControl "40/5400+30:1800+30"]

1. e4 {[%emt 0:02:57]} e5 {[%emt 0:00:11]} 2. Nf3 {[%emt 0:00:26]} Bc5 {[%emt 0:00:09]} 3. d4 {[%emt 0:00:29]} exd4 {[%emt 0:00:15]} 4. Bc4 {[%emt 0:00:37]} Nf6 {[%emt 0:00:18]} 5. e5 {[%emt 0:00:57]} d5 {[%emt 0:00:34]} 6. exd6 {[%emt 0:01:42]} Qxd6 {[%emt 0:01:26]} 7. O-O {[%emt 0:01:55]} O-O {[%emt 0:03:53]} 8. c3 {[%emt 0:03:13]} dxc3 {[%emt 0:08:46]} 9. Nxc3 {[%emt 0:01:22]} Re8 {[%emt 0:03:38]} 10. Qb3 {[%emt 0:04:23]} Rf8 {[%emt 0:13:23]} 11. Ng5 {[%emt 0:04:25]} Ng4 {[%emt 0:04:46]} 12. g3 {[%emt 0:12:18]} Ne5 {[%emt 0:04:42]} 13. Bf4 {[%emt 0:01:42]} Qh6 {[%emt 0:13:26]} 14. Bxf7+ {[%emt 0:18:11]} Rxf7 {[%emt 0:07:03]} 15. Nce4 {[%emt 0:07:42]} Be6 {[%emt 0:24:48]} 16. Nxe6 {[%emt 0:07:36]} Nf3+ {[%emt 0:01:29]} 17. Kg2 {[%emt 0:00:30]} Nd4 {[%emt 0:03:09]} 18. Nxd4 {[%emt 0:01:38]} 1-0